bitfinex/quotes_BTCUSD_20251224
["timestamp","ask_amount","ask_price","bid_price","bid_amount"]
[1766574064932,0.117472,87153.0,87140.0,0.1218]
[1766574069447,0.117472,87153.0,87140.0,0.12186964]
[1766574070585,0.1173984,87153.0,87140.0,0.12186964]
[1766574070809,0.10201094,87153.0,87140.0,0.12186964]
[1766574071210,0.11886,87160.0,87153.0,0.00055]
[1766574071422,0.0344492,87155.0,87153.0,0.00055]
[1766574071832,0.0344492,87155.0,87148.0,0.01148]
[1766574072451,0.0338992,87155.0,87148.0,0.01148]
[1766574073022,0.0338992,87155.0,87148.0,0.13328]
[1766574079348,0.11886,87166.0,87150.0,0.1218]
[1766574079557,0.03444635,87165.0,87151.0,0.1218]
[1766574079759,0.13034,87166.0,87151.0,0.1218]
[1766574082854,0.01148,87166.0,87151.0,0.1218]
[1766574086623,0.03444528,87168.0,87151.0,0.1218]
[1766574086831,0.15330528,87168.0,87151.0,0.1218]
[1766574087799,0.01148,87172.0,87151.0,0.1218]
[1766574088148,0.04592318,87172.0,87151.0,0.1218]
[1766574088511,0.01148,87172.0,87160.0,0.4840824]
[1766574088861,0.01148,87172.0,87161.0,0.01148]
[1766574089270,0.03444318,87173.0,87162.0,0.11871]
[1766574089801,0.11886,87174.0,87162.0,0.11871]
[1766574090009,0.04592318,87176.0,87162.0,0.11871]
[1766574090185,0.01148,87176.0,87162.0,0.11871]
[1766574090912,0.11922,87180.0,87162.0,0.11871]
[1766574091199,0.15365974,87180.0,87173.0,0.12863731]
[1766574091414,0.11922,87180.0,87173.0,0.12863731]
[1766574094309,0.01148,87184.0,87173.0,0.12863731]
[1766574094509,0.01158704,87184.0,87173.0,0.12863731]
[1766574094715,0.13080704,87184.0,87173.0,0.12863731]
[1766574095538,0.13080704,87184.0,87173.0,0.12808831]
[1766574096288,0.13080704,87184.0,87160.0,0.3653724]
[1766574096497,0.13080704,87184.0,87161.0,0.12729]
[1766574106816,0.01148,87190.0,87161.0,0.12729]
[1766574107053,0.01183672,87190.0,87161.0,0.12729]
[1766574107816,0.01183672,87190.0,87163.0,0.11581]
[1766574113213,0.00035672,87190.0,87175.0,0.11581]
[1766574113428,0.00035672,87190.0,87176.0,0.12729]
[1766574115487,0.00035672,87190.0,87176.0,0.12693099]
[1766574115928,0.00011,87186.0,87176.0,0.12693099]
[1766574117766,0.00011,87186.0,87178.0,0.11581]
[1766574118896,0.00035672,87190.0,87178.0,0.11581]
[1766574119750,7.2e-07,87190.0,87188.0,0.13765809]
[1766574119966,7.2e-07,87190.0,87188.0,0.14913809]
[1766574120633,7.2e-07,87190.0,87188.0,0.01148]
[1766574120855,7.2e-07,87190.0,87184.0,0.01148]
[1766574121062,7.2e-07,87190.0,87186.0,0.124]
[1766574121279,7.2e-07,87190.0,87185.0,0.01148]
[1766574122025,7.2e-07,87190.0,87185.0,0.01093]
[1766574126724,7.2e-07,87190.0,87180.0,0.00011]
[1766574126936,7.2e-07,87190.0,87181.0,0.01148]
[1766574147645,7.2e-07,87190.0,87182.0,0.124]
[1766574151581,7.2e-07,87190.0,87189.0,0.25182809]
[1766574151778,0.00011,87200.0,87189.0,0.26330809]
[1766574152867,0.00011,87200.0,87190.0,0.11417]
[1766574155296,0.13765809,87228.0,87191.0,0.11531678]
[1766574155445,0.00011,87210.0,87191.0,0.11417]
[1766574161876,0.00011,87210.0,87204.0,0.11386]
[1766574162077,0.00011,87210.0,87205.0,0.01148]
[1766574163006,0.00011,87210.0,87205.0,0.01137]
[1766574164107,0.00011,87210.0,87205.0,0.12523]
[1766574164730,0.00035844,87231.0,87210.0,0.00011]
[1766574164958,0.00035844,87231.0,87211.0,0.01148]
[1766574166413,0.00035844,87231.0,87211.0,0.12534]
[1766574169190,0.00035844,87231.0,87211.0,0.01148]
[1766574169411,0.00035844,87231.0,87212.0,1e-08]
[1766574169642,0.00035844,87231.0,87210.0,0.01148]
[1766574169857,0.00466,87230.0,87203.0,0.25151809]
[1766574170055,0.00466,87230.0,87204.0,0.01148]
[1766574172018,0.00466,87230.0,87205.0,0.11386]
[1766574172251,0.00035844,87231.0,87205.0,0.11386]
[1766574176615,0.13765809,87227.0,87199.0,0.04588]
[1766574176769,0.13765809,87227.0,87198.0,0.01148]
[1766574177811,0.13765809,87227.0,87191.0,0.01148]
[1766574178035,0.13765809,87227.0,87191.0,0.15976741]
[1766574178911,0.13765809,87227.0,87192.0,0.12317]
[1766574180876,0.05736,87226.0,87192.0,0.12317]
[1766574181499,0.08209416,87226.0,87191.0,0.01148]
[1766574181708,0.13765809,87213.0,87184.0,0.03443136]
[1766574181861,0.00011,87201.0,87184.0,0.04591136]
[1766574182065,0.01148,87212.0,87184.0,0.01148]
[1766574182285,0.01148,87212.0,87184.0,0.13465]
[1766574183104,0.01158695,87212.0,87184.0,0.13465]
[1766574186568,0.00010695,87212.0,87184.0,0.13465]
[1766574186773,0.05736,87211.0,87184.0,0.13465]
[1766574188133,0.01148,87210.0,87184.0,0.13465]
[1766574188315,0.05736,87210.0,87184.0,0.13465]
[1766574192861,0.05736,87210.0,87184.0,0.01148]
[1766574193063,0.13765809,87199.0,87178.0,0.03443239]
[1766574193262,0.01148,87198.0,87178.0,0.03443239]
[1766574193741,0.01148,87198.0,87177.0,0.01148]
[1766574194385,0.01148,87198.0,87175.0,0.01148]
[1766574195236,0.00011,87175.0,87169.0,0.01148]
[1766574195402,0.00011,87175.0,87163.0,0.12317]
[1766574195403,0.00011,87175.0,87166.0,0.01159]
[1766574195788,0.01148,87180.0,87166.0,0.01159]
[1766574196528,0.01148,87180.0,87166.0,0.01194672]
[1766574198450,0.04588,87191.0,87166.0,0.01194672]
[1766574198666,0.01148,87190.0,87180.0,0.000439]
[1766574198899,0.01148,87190.0,87166.0,0.01194672]
[1766574200324,0.01148,87190.0,87166.0,0.13511672]
[1766574201561,0.13765809,87199.0,87166.0,0.13511672]
[1766574201784,0.05736,87198.0,87166.0,0.13511672]
[1766574205131,0.01148,87197.0,87166.0,0.13511672]
[1766574205315,0.05736,87197.0,87166.0,0.13511672]
[1766574205736,0.13765809,87199.0,87166.0,0.13511672]
[1766574205937,0.05736,87196.0,87166.0,0.13511672]
[1766574206580,0.03443887,87203.0,87171.0,0.12317]
[1766574206778,0.01148,87202.0,87173.0,0.12317]
[1766574209544,0.01148,87202.0,87180.0,0.36498253]
[1766574209742,0.13765809,87213.0,87181.0,0.12594]
[1766574209944,0.04588,87210.0,87181.0,0.12594]
[1766574215909,0.01148,87209.0,87181.0,0.12594]
[1766574220404,0.01148,87209.0,87181.0,0.1326]
[1766574220949,0.03087698,87225.0,87181.0,0.1326]
[1766574220950,0.01148,87208.0,87191.0,0.11641]
[1766574221207,0.01148,87208.0,87192.0,0.12789]
[1766574224484,0.04588,87218.0,87208.0,0.000439]
[1766574224681,0.01148,87217.0,87208.0,0.000439]
[1766574224912,0.01148,87217.0,87199.0,0.11641]
[1766574225584,0.01155771,87217.0,87199.0,0.11641]
[1766574226601,0.01155771,87217.0,87201.0,0.11641]
[1766574249656,0.01155771,87217.0,87197.0,0.01148]
[1766574250724,0.01155771,87217.0,87197.0,0.01124077]
[1766574250891,0.00011,87207.0,87197.0,0.01124077]
[1766574251872,0.01148,87210.0,87197.0,0.01124077]
[1766574251986,0.01148,87210.0,87197.0,0.13354077]
[1766574253543,0.01148,87210.0,87197.0,0.14020077]
[1766574254373,0.011151,87210.0,87197.0,0.14020077]
[1766574255121,0.0013481,87210.0,87198.0,0.1223]
[1766574260259,0.01148,87216.0,87198.0,0.1223]
[1766574261038,7.771e-05,87217.0,87198.0,0.1223]
[1766574261247,0.01155771,87217.0,87198.0,0.1223]
[1766574261801,7.771e-05,87217.0,87198.0,0.1223]
[1766574272239,7.771e-05,87217.0,87211.0,0.12367]
[1766574273495,7.1e-07,87217.0,87211.0,0.12367]
[1766574278277,0.00025149,87231.0,87211.0,0.12367]
[1766574278457,0.00025149,87231.0,87213.0,0.11801]
[1766574278654,4.9e-07,87231.0,87213.0,0.11801]
[1766574279235,4.9e-07,87231.0,87212.0,0.01148]
[1766574279236,4.9e-07,87231.0,87221.0,0.11801]
[1766574279480,4.9e-07,87231.0,87223.0,0.11801]
[1766574282628,4.9e-07,87231.0,87223.0,0.117683]
[1766574284940,4.9e-07,87231.0,87222.0,0.01148]
[1766574285083,4.9e-07,87231.0,87216.0,0.11801]
[1766574285290,4.9e-07,87231.0,87217.0,0.01148]
[1766574285909,4.9e-07,87231.0,87216.0,0.11801]
[1766574286106,4.9e-07,87231.0,87216.0,0.12949]
[1766574286310,4.9e-07,87231.0,87210.0,0.13765809]
[1766574286554,4.9e-07,87231.0,87211.0,0.01148]
[1766574288948,4.9e-07,87231.0,87211.0,0.12949]
[1766574296773,4.9e-07,87231.0,87221.0,0.11801]
[1766574299770,4.9e-07,87231.0,87223.0,0.11718]
[1766574302134,4.9e-07,87231.0,87220.0,0.14913809]
[1766574302541,4.9e-07,87231.0,87215.0,0.01148]
[1766574302742,0.00293584,87237.0,87215.0,0.01148]
[1766574302950,0.00293584,87237.0,87211.0,0.01148]
[1766574303283,0.00293584,87237.0,87211.0,0.01155771]
[1766574304676,0.13765809,87236.0,87211.0,0.01155771]
[1766574304877,0.13765809,87236.0,87203.0,0.05736]
[1766574305093,0.00011,87221.0,87203.0,0.05736]
[1766574306766,0.00011,87221.0,87203.0,0.01148]
[1766574308850,0.00011,87221.0,87197.0,0.01814]
[1766574309809,0.13765809,87219.0,87190.0,0.03442812]
[1766574310465,0.13765809,87219.0,87189.0,0.01148]
[1766574311290,0.13765809,87219.0,87186.0,0.11718]
[1766574311466,0.13765809,87205.0,87183.0,0.01148]
[1766574311627,0.01148,87204.0,87183.0,0.01148]
[1766574313537,0.01148,87204.0,87185.0,0.03443204]
[1766574314336,0.01148,87204.0,87180.0,0.11718]
[1766574314337,0.13765809,87202.0,87177.0,0.01148]
[1766574314540,0.13765809,87202.0,87178.0,0.11718]
[1766574317184,0.13765809,87202.0,87177.0,0.00035672]
[1766574318148,0.13765809,87202.0,87177.0,0.11753672]
[1766574318359,0.13765809,87195.0,87177.0,0.11753672]
[1766574318590,0.01148,87194.0,87171.0,0.01148]
[1766574318804,0.0118365,87194.0,87172.0,0.11718]
[1766574323281,0.0003565,87194.0,87175.0,0.13765809]
[1766574323429,0.01148,87193.0,87181.0,0.11718]
[1766574323642,0.01148,87192.0,87182.0,0.11718]
[1766574324666,0.01093,87192.0,87182.0,0.11718]
[1766574325309,0.04588,87200.0,87182.0,0.11718]
[1766574325518,0.01148,87202.0,87184.0,0.11718]
[1766574325718,0.01148,87203.0,87184.0,0.11718]
[1766574329286,0.13765809,87219.0,87184.0,0.11718]
[1766574329489,0.04588,87215.0,87184.0,0.11718]
[1766574330305,0.04588,87215.0,87199.0,0.13765809]
[1766574331013,0.03443215,87224.0,87199.0,0.13765809]
[1766574331218,0.01148,87214.0,87194.0,0.11524]
[1766574333110,0.01148,87214.0,87195.0,0.11638673]
[1766574333311,0.01148,87214.0,87195.0,0.11524]
[1766574336326,0.02470066,87224.0,87195.0,0.11524]
[1766574336632,0.05736,87220.0,87197.0,0.11576]
[1766574336868,0.02470066,87230.0,87196.0,0.13765809]
[1766574336869,0.01148,87219.0,87199.0,0.11576]
[1766574338119,0.02470066,87230.0,87201.0,0.11576]
[1766574338120,0.07058066,87230.0,87201.0,0.11576]
[1766574338322,0.01159,87221.0,87201.0,0.11576]
[1766574338808,0.01159,87221.0,87211.0,0.11576]
[1766574339011,0.00011,87221.0,87211.0,0.11576]
[1766574339452,0.01148,87226.0,87210.0,0.13765809]
[1766574339453,0.01148,87226.0,87213.0,0.11576]
[1766574340053,0.01158691,87226.0,87213.0,0.11576]
[1766574340607,0.00010691,87226.0,87213.0,0.11576]
[1766574342824,0.00293584,87237.0,87226.0,0.11576]
[1766574343044,0.00293584,87237.0,87228.0,0.11576]
[1766574343466,0.001,87238.0,87230.0,0.11576]
[1766574343670,0.001,87238.0,87232.0,0.11576]
[1766574343927,0.001,87238.0,87233.0,0.01067198]
[1766574344089,0.001,87238.0,87234.0,0.01067198]
[1766574344293,3.26e-06,87244.0,87235.0,0.12643198]
[1766574344447,3.26e-06,87244.0,87237.0,0.11576]
[1766574344647,3.26e-06,87244.0,87238.0,0.01012298]
[1766574344859,0.00055,87238.0,87232.0,0.12724]
[1766574345145,3.26e-06,87244.0,87232.0,0.12724]
[1766574346348,3.26e-06,87244.0,87232.0,0.01093]
[1766574347896,3.26e-06,87244.0,87226.0,0.12034901]
[1766574348151,3.26e-06,87244.0,87227.0,0.01148]
[1766574349246,0.00025149,87239.0,87227.0,0.01148]
[1766574350836,0.00025149,87239.0,87228.0,0.11576]
[1766574356579,0.00025149,87239.0,87229.0,0.01066087]
[1766574356786,0.00025149,87239.0,87230.0,0.01066087]
[1766574356988,0.00025149,87239.0,87231.0,0.01066087]
[1766574357190,0.00025149,87239.0,87232.0,0.01066087]
[1766574357439,0.00025149,87239.0,87233.0,0.01066087]
[1766574357628,0.00025149,87239.0,87234.0,0.01066087]
[1766574357827,0.00025149,87239.0,87235.0,0.01066087]
[1766574358060,0.00025149,87239.0,87236.0,0.01066087]
[1766574358306,0.00025149,87239.0,87237.0,0.01066087]
[1766574358511,0.00025149,87239.0,87238.0,1e-08]
[1766574361740,0.0046607,87252.0,87238.0,0.01148001]
[1766574361941,0.002452,87250.0,87242.0,0.11926]
[1766574362140,0.002452,87250.0,87239.0,0.000251]
[1766574362324,0.002452,87250.0,87240.0,0.01148]
[1766574362536,0.00025145,87247.0,87240.0,0.01148]
[1766574363396,0.00025145,87247.0,87236.0,0.0046607]
[1766574363596,0.00025145,87247.0,87237.0,0.11926]
[1766574363751,0.00025145,87247.0,87237.0,0.17662]
[1766574364172,0.00025145,87247.0,87238.0,0.01148]
[1766574364514,0.00025145,87247.0,87238.0,0.05736]
[1766574364719,4.5e-07,87247.0,87239.0,0.11926]
[1766574364946,0.002452,87250.0,87240.0,0.11926]
[1766574365989,0.010852,87250.0,87241.0,0.01148]
[1766574367319,0.01092963,87250.0,87241.0,0.01148]
[1766574368399,0.01092963,87250.0,87242.0,0.01148]
[1766574369098,0.01092963,87250.0,87243.0,0.01148]
[1766574370481,0.01092963,87250.0,87244.0,0.01069308]
[1766574370701,0.01092963,87250.0,87245.0,0.01069308]
[1766574370908,0.01092963,87250.0,87246.0,0.01069308]
[1766574371115,0.01092963,87250.0,87247.0,0.01069308]
[1766574371310,0.13765809,87279.0,87248.0,0.0118391]
[1766574371538,0.05675,87277.0,87253.0,0.25691809]
[1766574371728,0.05675,87277.0,87254.0,0.14835117]
[1766574371894,0.05675,87277.0,87255.0,0.01069308]
[1766574372094,0.05675,87277.0,87256.0,0.01069308]
[1766574372305,0.05675,87277.0,87257.0,0.02217308]
[1766574372505,0.05675,87277.0,87258.0,0.01069308]
[1766574372705,0.05675,87277.0,87259.0,0.01014408]
[1766574372913,0.05675,87277.0,87257.0,0.04588566]
[1766574373362,7.763e-05,87279.0,87261.0,0.11926]
[1766574376685,0.0037441,87282.0,87264.0,0.11926]
[1766574376893,0.0005657,87265.0,87264.0,0.11926]
[1766574377097,0.01148,87282.0,87266.0,0.11926]
[1766574377368,0.05705,87281.0,87266.0,0.11926]
[1766574380108,0.05705,87281.0,87271.0,0.13765809]
[1766574381874,0.01148,87282.0,87272.0,0.11926]
[1766574382634,0.00025128,87273.0,87272.0,0.11926]
[1766574382884,0.01148,87282.0,87271.0,0.13765809]
[1766574382885,0.05705,87281.0,87271.0,0.13765809]
[1766574383311,0.05705,87281.0,87264.0,0.00494336]
[1766574384164,0.05705,87281.0,87264.0,0.00035633]
[1766574384761,0.05705,87281.0,87265.0,0.01065098]
[1766574384940,0.05705,87281.0,87266.0,0.01065098]
[1766574385139,0.05705,87281.0,87267.0,0.01065098]
[1766574385343,0.05705,87281.0,87268.0,0.01065098]
[1766574385584,0.05705,87281.0,87269.0,0.01065098]
[1766574385755,0.00030108,87280.0,87270.0,0.01065098]
[1766574385961,0.05642,87279.0,87271.0,0.01010098]
[1766574386213,0.05642,87279.0,87264.0,0.00035633]
[1766574387928,0.05642,87279.0,87264.0,0.11961633]
[1766574388247,0.00030108,87278.0,87264.0,0.11961633]
[1766574388455,8e-08,87278.0,87264.0,0.11961633]
[1766574391954,0.05642,87280.0,87264.0,0.11961633]
[1766574396772,0.04523767,87280.0,87264.0,0.11961633]
[1766574397202,0.01148,87282.0,87264.0,0.11961633]
[1766574398035,0.01148,87282.0,87266.0,0.11948]
[1766574398258,0.01148,87282.0,87267.0,0.13015601]
[1766574398465,0.01148,87282.0,87268.0,0.01067601]
[1766574398677,0.04524,87281.0,87269.0,0.01037501]
[1766574398885,0.04524,87281.0,87264.0,0.00035633]
[1766574399914,0.04524,87281.0,87262.0,0.11948]
[1766574400115,0.00011,87271.0,87262.0,0.11955763]
[1766574400330,0.04524,87281.0,87262.0,0.11955763]
[1766574400331,0.01127715,87276.0,87262.0,0.11955763]
[1766574402585,0.01017815,87276.0,87268.0,0.13765809]
[1766574402785,0.01017815,87276.0,87269.0,0.11948]
[1766574406197,0.01148,87275.0,87269.0,0.11948]
[1766574408142,0.01148,87277.0,87269.0,0.11948]
[1766574408915,0.04051,87286.0,87269.0,0.11948]
[1766574409113,0.05199,87284.0,87269.0,0.11948]
[1766574410714,0.05199,87284.0,87270.0,0.01070406]
[1766574410854,0.05199,87284.0,87271.0,0.01070406]
[1766574411050,0.05199,87284.0,87272.0,0.01070406]
[1766574411253,0.05199,87284.0,87273.0,0.01070406]
[1766574411452,0.05199,87284.0,87274.0,0.01070406]
[1766574411648,0.00025131,87281.0,87275.0,0.01070406]
[1766574411854,0.00025131,87281.0,87276.0,0.01070406]
[1766574412091,0.00025131,87281.0,87270.0,0.11948]
[1766574412275,0.01148,87280.0,87263.0,0.11948]
[1766574412475,0.01148,87280.0,87269.0,0.11948]
[1766574415921,0.08668,87280.0,87269.0,0.11948]
[1766574416123,0.08668,87280.0,87262.0,7.763e-05]
[1766574416846,0.07549799,87280.0,87262.0,7.763e-05]
[1766574417832,0.07549799,87280.0,87262.0,6.3e-07]
[1766574418258,0.01148,87279.0,87262.0,6.3e-07]
[1766574418468,0.06114,87278.0,87262.0,6.3e-07]
[1766574421128,0.04584,87277.0,87262.0,6.3e-07]
[1766574421336,0.10698,87277.0,87262.0,6.3e-07]
[1766574421958,0.09952501,87277.0,87262.0,6.3e-07]
[1766574424096,0.09952501,87277.0,87263.0,0.01070586]
[1766574424307,0.08461503,87277.0,87264.0,0.01070586]
[1766574424539,0.06114,87276.0,87265.0,0.01070586]
[1766574424721,0.06114,87276.0,87266.0,0.01070586]
[1766574425046,0.06114,87276.0,87267.0,0.01070586]
[1766574425270,0.06114,87276.0,87268.0,0.01070586]
[1766574425562,0.06114,87276.0,87269.0,0.01070586]
[1766574425749,0.06114,87276.0,87270.0,0.01070586]
[1766574425955,0.06114,87276.0,87262.0,6.3e-07]
[1766574426718,0.10727752,87275.0,87262.0,6.3e-07]
[1766574428372,0.06114,87274.0,87262.0,6.3e-07]
[1766574428545,0.04250252,87274.0,87262.0,6.3e-07]
[1766574429382,0.05732,87273.0,87262.0,6.3e-07]
[1766574429584,0.09982,87273.0,87262.0,6.3e-07]
[1766574430396,0.01148,87272.0,87262.0,6.3e-07]
[1766574435521,0.01148,87271.0,87262.0,6.3e-07]
[1766574436401,0.01148,87270.0,87262.0,6.3e-07]
[1766574436852,0.03907009,87273.0,87262.0,6.3e-07]
[1766574437159,0.01148,87272.0,87262.0,6.3e-07]
[1766574437357,0.04309,87272.0,87262.0,6.3e-07]
[1766574438061,0.03161,87272.0,87263.0,0.01070642]
[1766574438205,0.01148,87271.0,87264.0,0.01070642]
[1766574438414,0.01148,87271.0,87265.0,0.01070642]
[1766574438661,0.01375,87269.0,87262.0,6.3e-07]
[1766574443522,0.01148,87270.0,87262.0,6.3e-07]
[1766574443523,0.01375,87266.0,87262.0,6.3e-07]
[1766574443737,0.01375,87264.0,87262.0,6.3e-07]
[1766574446444,0.013201,87264.0,87262.0,6.3e-07]
[1766574446832,0.00201711,87264.0,87262.0,6.3e-07]
[1766574450631,0.00201711,87264.0,87263.0,0.01069792]
[1766574450865,0.00201711,87264.0,87263.0,0.01014892]
[1766574452096,0.0060412,87265.0,87263.0,0.01014892]
[1766574452340,0.0060412,87265.0,87262.0,6.3e-07]
[1766574453925,0.0060412,87265.0,87246.0,0.12307]
[1766574454260,0.00609833,87265.0,87246.0,0.12307]
[1766574456082,0.13765809,87264.0,87246.0,0.12307]
[1766574456298,0.00011,87261.0,87246.0,0.12307]
[1766574456858,0.12658417,87264.0,87244.0,0.01014892]
[1766574457058,0.12658417,87264.0,87241.0,0.00011]
[1766574457260,0.12658417,87264.0,87233.0,0.03441154]
[1766574457445,0.12658417,87264.0,87232.0,0.11354]
[1766574457848,0.12658417,87264.0,87232.0,0.14795154]
[1766574458182,0.12658417,87264.0,87233.0,0.11354]
[1766574458379,0.00011,87251.0,87233.0,0.11354]
[1766574458591,0.05732,87250.0,87233.0,0.11354]
[1766574462776,0.05732,87250.0,87234.0,0.01069398]
[1766574462906,0.05732,87250.0,87235.0,0.01069398]
[1766574463104,0.05732,87250.0,87236.0,0.01069398]
[1766574463308,0.05732,87250.0,87237.0,0.01069398]
[1766574463510,0.05732,87250.0,87238.0,0.01069398]
[1766574463716,0.05732,87250.0,87234.0,0.11354]
[1766574463717,0.05732,87250.0,87239.0,0.01069398]
[1766574463916,0.05732,87250.0,87240.0,0.01069398]
[1766574464123,0.05732,87250.0,87241.0,0.01069398]
[1766574464321,0.05732,87250.0,87242.0,0.01069398]
[1766574464684,0.06867,87248.0,87231.0,0.00011]
[1766574466162,0.06867,87248.0,87231.0,0.11365]
[1766574466874,0.04613396,87247.0,87232.0,0.11354]
[1766574471132,0.00011,87251.0,87232.0,0.11354]
[1766574471351,0.06878,87281.0,87252.0,0.11354]
[1766574471563,0.06878,87281.0,87254.0,0.11354]
[1766574471770,0.06883,87275.0,87254.0,0.11354]
[1766574471981,0.0687,87286.0,87256.0,0.11354]
[1766574472203,0.0687,87276.0,87256.0,0.11354]
[1766574476630,0.0687,87276.0,87257.0,0.12422217]
[1766574476835,0.057517,87276.0,87258.0,0.12422217]
[1766574477036,0.057517,87276.0,87259.0,0.01068217]
[1766574477320,0.057517,87276.0,87260.0,0.02216217]
[1766574477535,0.057517,87276.0,87261.0,0.01068217]
[1766574477723,0.057517,87276.0,87262.0,0.01068217]
[1766574477928,0.057517,87276.0,87263.0,0.01068217]
[1766574478220,0.057517,87276.0,87260.0,0.01148]
[1766574478221,0.057517,87276.0,87264.0,0.01068217]
[1766574478424,0.057517,87276.0,87265.0,0.01068217]
[1766574478627,0.057517,87276.0,87266.0,0.01068217]
[1766574478806,0.057517,87276.0,87267.0,1e-08]
[1766574478994,0.13776809,87277.0,87260.0,0.01148]
[1766574479188,0.05752,87276.0,87260.0,0.01148]
[1766574480012,0.05752,87276.0,87257.0,0.00011]
[1766574480227,0.05752,87276.0,87255.0,0.01148]
[1766574481333,0.05752,87276.0,87256.0,0.11583]
[1766574482396,0.05752,87276.0,87255.0,0.01148]
[1766574485592,0.05741,87269.0,87257.0,0.01146039]
[1766574485797,0.05741,87266.0,87258.0,0.01146026]
[1766574486035,0.03060569,87266.0,87258.0,0.01146026]
[1766574486220,0.02435789,87266.0,87260.0,0.01146]
[1766574486426,0.01148,87269.0,87264.0,0.12728947]
[1766574486623,0.01156777,87277.0,87264.0,0.12728947]
[1766574486624,0.08022742,87276.0,87269.0,0.00055]
[1766574486823,0.06885777,87277.0,87265.0,0.18458598]
[1766574487001,0.01148,87276.0,87266.0,0.11583]
[1766574487202,0.0114579,87276.0,87265.0,0.01145934]
[1766574487403,0.13018803,87275.0,87265.0,0.01145934]
[1766574487607,0.13018803,87275.0,87266.0,0.01145921]
[1766574488066,0.11873,87275.0,87266.0,0.01145921]
[1766574488444,0.11873,87275.0,87267.0,0.01145908]
[1766574488659,0.11873,87275.0,87268.0,0.01145895]
[1766574488859,0.00011,87277.0,87269.0,0.01145882]
[1766574489062,0.00011,87277.0,87268.0,0.06875318]
[1766574489265,0.00011,87277.0,87269.0,0.06875285]
[1766574489509,0.00011,87277.0,87270.0,0.01145869]
[1766574489716,0.00011,87277.0,87268.0,0.06875318]
[1766574489963,0.00011,87277.0,87269.0,0.06875264]
[1766574490115,0.00011,87277.0,87269.0,0.18458264]
[1766574490296,0.01148,87278.0,87270.0,0.12728869]
[1766574490496,0.01148,87282.0,87271.0,0.00533]
[1766574490695,0.01148,87283.0,87272.0,0.0106733]
[1766574490901,0.01145724,87281.0,87273.0,1e-08]
[1766574491118,0.01145737,87280.0,87269.0,0.02293882]
[1766574491323,0.187474,87281.0,87270.0,0.01145869]
[1766574491768,0.13018724,87281.0,87270.0,0.01145869]
[1766574491925,0.11873,87281.0,87271.0,0.01145856]
[1766574492127,0.11873,87281.0,87270.0,0.01145869]
[1766574492322,1e-08,87287.0,87284.0,0.01145685]
[1766574492599,1e-08,87287.0,87285.0,0.01148]
[1766574493017,1e-08,87287.0,87286.0,0.05728295]
[1766574493662,0.00174268,87298.0,87288.0,0.05692529]
[1766574493870,0.00174268,87298.0,87292.0,0.01145581]
[1766574494095,0.00174268,87298.0,87293.0,0.05727836]
[1766574494296,0.00174268,87298.0,87293.0,0.01145567]
[1766574494712,0.00174268,87298.0,87292.0,0.01145581]
[1766574494942,0.00174268,87298.0,87293.0,0.06873398]
[1766574495215,0.00174268,87298.0,87294.0,0.01145554]
[1766574495454,0.00174268,87298.0,87294.0,0.06873259]
[1766574495700,0.00174268,87298.0,87295.0,0.06873229]
[1766574495912,0.00174268,87298.0,87295.0,0.06873231]
[1766574496309,4.4e-06,87301.0,87296.0,0.01145527]
[1766574496521,0.01148,87304.0,87295.0,0.0114554]
[1766574497062,0.01148,87304.0,87292.0,0.05727844]
[1766574497265,0.11873,87302.0,87292.0,1e-08]
[1766574497567,0.01145501,87298.0,87292.0,1e-08]
[1766574497776,0.11873,87299.0,87292.0,1e-08]
[1766574497997,0.11873,87297.0,87292.0,1e-08]
[1766574499462,0.11898124,87297.0,87292.0,1e-08]
[1766574499670,0.11898124,87297.0,87287.0,0.01148]
[1766574499870,0.000549,87287.0,87285.0,0.02293672]
[1766574500084,0.11873,87294.0,87285.0,0.01158684]
[1766574500497,0.11873,87294.0,87285.0,0.08032659]
[1766574501203,0.11873,87294.0,87287.0,0.01145645]
[1766574501450,0.11873,87294.0,87286.0,0.06873954]
[1766574501657,0.11873,87294.0,87287.0,0.01145645]
[1766574501832,0.11127669,87294.0,87286.0,0.06873954]
[1766574502167,0.11127669,87294.0,87287.0,0.01145645]
[1766574502553,0.10009673,87294.0,87286.0,0.01145659]
[1766574502938,0.10009673,87294.0,87287.0,0.01066557]
[1766574503270,0.11873,87285.0,87279.0,0.01148]
[1766574503419,0.11873,87285.0,87278.0,0.01148]
[1766574503618,0.11908613,87285.0,87278.0,0.02293764]
[1766574503846,0.11908613,87285.0,87279.0,0.0114575]
[1766574504054,0.11908613,87285.0,87281.0,0.01145724]
[1766574504255,0.11853713,87285.0,87281.0,0.06874287]
[1766574504459,0.01148,87294.0,87286.0,0.00734006]
[1766574504656,0.0229354,87295.0,87285.0,0.01145672]
[1766574504863,0.01148,87297.0,87285.0,0.0115635]
[1766574505060,0.01145527,87296.0,87285.0,0.0115635]
[1766574505325,0.06873166,87296.0,87285.0,0.0115635]
[1766574505721,0.1301854,87295.0,87285.0,0.0115635]
[1766574506048,0.11873,87295.0,87286.0,0.01145659]
[1766574506252,0.01145554,87294.0,87285.0,0.00010678]
[1766574506469,0.11873,87293.0,87285.0,0.00010678]
[1766574507125,0.13018567,87293.0,87285.0,0.00010678]
[1766574507307,0.11873,87293.0,87285.0,0.00010678]
[1766574509555,0.11873,87293.0,87285.0,7.8e-07]
[1766574509913,0.11873,87293.0,87285.0,0.0114575]
[1766574510538,0.01148,87296.0,87287.0,0.01145645]
[1766574510739,0.13522,87296.0,87288.0,1e-08]
[1766574511151,0.13522,87296.0,87285.0,0.01145737]
[1766574511470,0.12374,87295.0,87288.0,1e-08]
[1766574511884,0.01148,87296.0,87288.0,1e-08]
[1766574511885,0.01148,87296.0,87289.0,0.01145619]
[1766574512985,0.01148,87296.0,87288.0,1e-08]
[1766574513207,0.01148,87296.0,87289.0,0.01145619]
[1766574514068,0.01148,87297.0,87288.0,1e-08]
[1766574514234,0.01148,87297.0,87288.0,0.01145633]
[1766574514937,0.01148,87300.0,87288.0,0.01148]
[1766574515153,0.02293905,87300.0,87287.0,0.24060755]
[1766574515358,0.12374,87299.0,87290.0,0.01145606]
[1766574515553,4.3e-06,87300.0,87293.0,0.06873348]
[1766574515780,0.12374,87300.0,87294.0,0.01145554]
[1766574515986,4.652e-05,87294.0,87293.0,0.06870902]
[1766574516188,0.12374,87300.0,87293.0,0.01145567]
[1766574516603,0.12374,87300.0,87294.0,0.01145554]